Cogmind - Beta 13 @@@ ROGUE MODE // 2024.07.07 @ 16:13:58 Player: CONM Result: Destroyed by H-61 Shepherd with Heavy Assault Cannon Performance ------------- Evolutions (2) 1000 Regions Visited (4) 800 Robots Destroyed (60) 300 Value Destroyed (1602) 1602 Prototype IDs (11) 220 Alien Tech Used (0) 0 Bonus (44) 44 TOTAL SCORE: 3966 Bonus ------- High Alert Combat Kills 56 Friendly Fire -12 Cogmind --------- Core Integrity 0/550 Matter 300/300 Energy 140/140 System Corruption 5% Temperature Cool (0) Movement Rolling (215) Ox9 Location -8/Materials Parts ------- > --- POWER (1) -------- Light Deuterium Engine > --- PROPULSION (3) --- Spiked Treads Wheel > --- UTILITY (4) ------ Improved Heat Sink Huge Storage Unit Targeting Computer > --- WEAPON (3) ------- Improved Medium Laser Heavy Particle Cannon > --- INVENTORY (25) --- Advanced Treads Improved Heat Sink Small Matter Pod (50) Advanced Weight Redist. System Structural Scanner Signal Interpreter Improved Terrain Scanner Armor Integrity Analyzer Makeshift Hacking Suite Power Bank Improved Medium Laser Grenade Launcher Grenade Launcher Grenade Launcher Axe Peak State ------------ > --- POWER ------------ Light Deuterium Engine > --- PROPULSION ------- Spiked Treads Advanced Treads Wheel > --- UTILITY ---------- Improved Heat Sink Huge Storage Unit Structural Scanner Makeshift Light Armor Plating > --- WEAPON ----------- Heavy Particle Cannon Ion Cannon Minigun > --- INVENTORY -------- Light Deuterium Engine Compact Wheel Small Matter Pod Advanced Weight Redist. System Improved Sensor Array Improved Terrain Scanner Targeting Computer Armor Integrity Analyzer Makeshift Hacking Suite Power Bank Improved Medium Laser Improved Medium Laser Improved Medium Laser Heavy Particle Cannon Assault Rifle EMP Blaster EMP Blaster Grenade Launcher Grenade Launcher Grenade Launcher Axe [Rating: 32] Favorites ----------- Power Ion Engine Engine Ion Engine Power Core Light Nuclear Core Propulsion Wheel Treads Light Treads Wheel Wheel Utility Large Storage Unit Device Sensor Array Storage Large Storage Unit Processor Targeting Computer Protection Makeshift Light Armor Plating Weapon Assault Rifle Energy Gun Improved Medium Laser Energy Cannon Heavy Particle Cannon Ballistic Gun Assault Rifle Launcher Grenade Launcher Special Weapon Welding Torch Slashing Weapon Axe Build | -11 -10 -10 -10 -8 ------- Run | Yrd Mat Min Sub Mat Slots Evolved 4 | . . . . 4 Power . | . . . . . Propulsion 1 | . . . . 1 Utility 2 | . . . . 2 Weapon 1 | . . . . 1 Parts Attached 84 | 6 10 6 10 52 Power 8 | 1 1 . 1 5 Engine 5 | 1 . . 1 3 Core 3 | . 1 . . 2 Reactor . | . . . . . Propulsion 21 | 2 2 2 1 14 Treads 9 | 2 1 1 . 5 Leg . | . . . . . Wheel 12 | . 1 1 1 9 Hover . | . . . . . Flight . | . . . . . Utility 15 | 1 2 . 2 10 Device 6 | . 1 . . 5 Storage 5 | 1 1 . 1 2 Processor 1 | . . . . 1 Hackware . | . . . . . Protection 3 | . . . 1 2 Artifact . | . . . . . Weapon 40 | 2 5 4 6 23 Energy Gun 3 | . . . . 3 Energy Cannon 4 | . . . . 4 Ballistic Gun 19 | 2 4 2 4 7 Ballistic Cannon . | . . . . . Launcher 9 | . . 2 2 5 Special Weapon 1 | . 1 . . . Impact Weapon . | . . . . . Slashing Weapon 4 | . . . . 4 Piercing Weapon . | . . . . . Special Melee Weapon . | . . . . . Unidentified Prototypes 1 | . . . . 1 Corrupted Parts 1 | . . . . 1 System Corruption 5 | . . . . 5 Parts Lost 29 | . 2 3 1 23 Power 5 | . . 1 . 4 Propulsion 10 | . 1 2 . 7 Utility 4 | . . . . 4 Weapon 10 | . 1 . 1 8 Highest Loss Streak 9 | . 1 2 1 9 To Critical Strikes . | . . . . . Average Slot Usage (%) 94 | . 97 99 99 88 Engine 7 | . 9 . 14 6 Core 4 | . 4 13 . 1 Treads 10 | . 23 22 . 3 Wheel 14 | . 4 4 27 18 Device 10 | . 12 14 . 14 Storage 13 | . 14 14 20 9 Protection 3 | . . . 6 6 Energy Cannon 4 | . . . . 11 Ballistic Gun 17 | . 27 25 18 7 Launcher 3 | . . 2 9 1 Naked Turns . | . . . . . Heaviest Build 109 | 12 30 31 71 109 Greatest Support 42 | 40 40 40 20 42 Greatest Overweight (x) 10 | . 2 3 3 10 Average Overweight (x) 1 | . . . 2 3 Largest Inventory Capacity 25 | 8 15 15 20 25 Average Capacity 18 | 7 13 15 19 24 Most Carried 25 | 4 15 15 20 25 Average Carried 15 | 2 9 14 18 20 Final Capacity 25 | 8 15 15 20 25 Final Carried 20 | 4 15 15 20 15 Class Distribution -------------------- 78% | Mutant 11% | Gunner 5% | Tank Dominant Class ---------------- Mutant | -10/Materials Mutant | -10/Mines Mutant | -10/Subcaves Mutant | -8/Materials Resources | -11 -10 -10 -10 -8 ----------- Run | Yrd Mat Min Sub Mat Matter Collected 1693 | 283 134 133 261 882 Remotely 225 | . . . . 225 Salvage Created 2091 | 73 229 318 58 1413 Parts 120 | 8 19 18 3 72 Haulers Intercepted 2 | . 1 . . 1 Recyclers Shooed 3 | . 1 2 . . Parts Field Recycled . | . . . . . Retrieved Matter . | . . . . . Parts Self-Destructed 2 | . . . 2 . Prevented . | . . . . . Kills | -11 -10 -10 -10 -8 ------- Run | Yrd Mat Min Sub Mat Combat Hostiles Destroyed 50 | . 8 14 3 25 Guns 22 | . 8 8 1 5 Cannons 11 | . . . . 11 AOE 14 | . . 6 2 6 Classes Destroyed 13 | 1 3 3 1 5 Worker 3 | . . . . 3 Builder 4 | . . 2 . 2 Tunneler 7 | 5 . 1 . 1 Hauler 2 | . 1 . . 1 Recycler 5 | . . 2 . 3 Operator 1 | . . . . 1 Swarmer 10 | . 6 . . 4 Grunt 20 | . 2 2 2 14 Sentry 3 | . . . . 3 Specialist 2 | . . . . 2 Hunter 2 | . . . . 2 Subdweller 1 | . . . 1 . Assembled 12 | . . 12 . . Best Kill Streak 10 | 2 3 10 2 7 Combat Bots Only 9 | . 3 9 2 6 Max Kills in Single Turn 5 | 1 1 2 2 5 Gunslinging . | . . . . . Exploded 4 | . . 2 2 4 Melee . | . . . . . Uniques/NPCs Destroyed . | . . . . . Combat | -11 -10 -10 -10 -8 -------- Run | Yrd Mat Min Sub Mat Hostile Shots Fired 345 | . 76 45 17 207 Missed 77 | . 20 14 7 36 Damage Taken 4243 | . 554 510 195 2984 Core 780 | . 73 81 27 599 Absorbed by Shields . | . . . . . Core Remaining (%) 63 | 100 . . 27 . Volleys Fired 177 | 14 35 39 16 73 Largest 3 | 2 2 2 2 3 Hottest 188 | 40 40 50 60 188 Shots Fired 362 | 28 67 72 32 163 Gun 252 | 28 64 59 26 75 Cannon 74 | . . . . 74 Launcher 33 | . . 13 6 14 Special 3 | . 3 . . . Kinetic 231 | 28 64 59 26 54 Thermal 87 | . 3 . . 84 Explosive 20 | . . 13 6 1 Electromagnetic 24 | . . . . 24 Robot Hit Streak 20 | 10 11 20 6 18 Robot Miss Streak 5 | 3 4 5 2 3 Penetration Max . | . . . . . Secondary Targets 2 | . 1 1 . . Max Gunslinging Chain 1 | . 1 1 . . Shots Hit Robots 216 | 20 39 42 9 106 Core Hits 128 | 9 18 38 7 56 Critical Kills . | . . . . . Critical Parts Destroyed 2 | . 1 . . 1 Critical Strikes 2 | . 1 . . 1 Destroy 2 | . 1 . . 1 Melee Attacks 8 | . . . . 8 Impact . | . . . . . Slashing 8 | . . . . 8 Piercing . | . . . . . Sneak Attacks 3 | . . . . 3 Combat Hostiles . | . . . . . Follow-up Attacks . | . . . . . Damage Inflicted 5453 | 162 333 1074 438 3446 Guns 1822 | 162 333 514 100 713 Cannons 1204 | . . . . 1204 Explosions 2208 | . . 550 338 1320 Melee 209 | . . . . 209 Ramming 10 | . . 10 . . Kinetic 1507 | 162 333 514 100 398 Thermal 1952 | . . . . 1952 Explosive 1061 | . . 550 338 173 Electromagnetic 714 | . . . . 714 Impact . | . . . . . Slashing 209 | . . . . 209 Piercing . | . . . . . Highest Corruption 5 | . . . . 5 Average Corruption 5 | . . . . 5 Corruption Purged . | . . . . . Corruption Blocked . | . . . . . Effects 3 | . . . . 3 Message Errors 1 | . . . . 1 Heat Flow Errors 1 | . . . . 1 Data Loss (major) 1 | . . . . 1 Overload Shots . | . . . . . Overflow Damage 138 | . 4 . 4 130 Projectiles 9 | . . . . 9 Explosions 129 | . 4 . 4 121 Melee . | . . . . . Knockbacks . | . . . . . Impact . | . . . . . Kinetic . | . . . . . Secondary . | . . . . . Self-Inflicted Damage 205 | . 34 7 15 149 Shots 8 | . 1 1 1 5 Rammed 1 | . . 1 . . Targets Rammed 1 | . . 1 . . Kicked . | . . . . . Crushed . | . . . . . Highest Temperature 477 | . 18 52 . 477 Average Temperature 113 | . 7 24 . 140 Received Heat Transfer 1482 | . 93 288 30 1071 Effects 7 | . . . . 7 Energy Bleed 1 | . . . . 1 Interference 6 | . . . . 6 Siege Activations . | . . . . . Robots Corrupted 2 | . . . . 2 Combat Hostiles 2 | . . . . 2 Parts Fried 1 | . . . . 1 Impact Corruptions . | . . . . . Robots Melted 1 | . . . . 1 Combat Hostiles 1 | . . . . 1 Parts Melted 7 | . . . . 7 Heat Transferred 2683 | . . . . 2683 Parts Sabotaged . | . . . . . Parts Stolen . | . . . . . Parts Stripped . | . . . . . Power Chain Reactions 3 | . . . . 3 Alert | -11 -10 -10 -10 -8 ------- Run | Yrd Mat Min Sub Mat Peak Influence 455 | 25 186 122 . 455 Initial 57 | . 16 57 . . Average 150 | 7 90 59 . 266 Maximum Alert Level 2 | . . . . 2 Low Security (%) 66 | 100 100 100 . 20 Level 1 29 | . . . . 69 Level 2 4 | . . . . 9 Level 3 . | . . . . . Level 4 . | . . . . . Level 5 . | . . . . . High Security . | . . . . . Max Security . | . . . . . Squads Dispatched 6 | . 1 . . 5 Investigation . | . . . . . Extermination . | . . . . . Reinforcement 6 | . 1 . . 5 Assault . | . . . . . Garrison . | . . . . . Intercept . | . . . . . Searches Triggered . | . . . . . Construction Impeded . | . . . . . Haulers Reinforced . | . . . . . Active Scanning Responses . | . . . . . Cargo Convoy Interrupts . | . . . . . Stealth | -11 -10 -10 -10 -8 --------- Run | Yrd Mat Min Sub Mat Distress Signals 4 | . 2 . . 2 Communications Jammed . | . . . . . Distress Signals . | . . . . . Times Spotted 82 | . 14 22 4 42 Peak Tracking Total 7 | . 4 7 2 7 Tactical Retreats 12 | . 2 2 . 8 Traps | -11 -10 -10 -10 -8 ------- Run | Yrd Mat Min Sub Mat Traps Triggered 1 | . . . . 1 Indirectly . | . . . . . Trap Hack Attempts . | . . . . . Triggered . | . . . . . Disarmed . | . . . . . Reprogrammed . | . . . . . Reused . | . . . . . Traps Extracted . | . . . . . Installed . | . . . . . Triggered . | . . . . . Machines | -11 -10 -10 -10 -8 ---------- Run | Yrd Mat Min Sub Mat Machines Disabled 8 | . 2 . 1 5 Max in Single Turn 3 | . 2 . 1 3 Garrison Access 1 | . . . . 1 Machines Repaired . | . . . . . Machines Dismantled . | . . . . . Machines Sabotaged . | . . . . . Overloaded Fab Kills . | . . . . . Hacking | -11 -10 -10 -10 -8 --------- Run | Yrd Mat Min Sub Mat Machines Accessed 10 | . 6 . 1 3 Terminals 7 | . 5 . . 2 Fabricators . | . . . . . Repair Stations . | . . . . . Recycling Units 1 | . 1 . . . Scanalyzers . | . . . . . Garrison Access 1 | . . . . 1 Total Hacks 34 | . 14 . 9 11 Successful 17 | . 4 . 9 4 Failed 17 | . 10 . . 7 Catastrophic 1 | . 1 . . . Database Lockouts . | . . . . . Manual 6 | . 5 . . 1 Terminals 17 | . 11 . . 6 Fabricators . | . . . . . Repair Stations . | . . . . . Recycling Units 3 | . 3 . . . Scanalyzers . | . . . . . Garrison Access 5 | . . . . 5 Terminal Hacks 12 | . 1 . 9 2 Record 8 | . . . 8 . Terminal Index 1 | . . . . 1 Zone Layout 2 | . 1 . . 1 Derelict Proto ID Bank 1 | . . . 1 . Fabricator Hacks . | . . . . . Repair Station Hacks . | . . . . . Recycling Unit Hacks 3 | . 3 . . . Process 1 | . 1 . . . Report Inventory 1 | . 1 . . . Retrieve Matter 1 | . 1 . . . Scanalyzer . | . . . . . Garrison Access Hacks 1 | . . . . 1 Seal Access 1 | . . . . 1 Unauthorized Hacks 1 | . . . . 1 Terminals 1 | . . . . 1 Botnet 1 | . . . . 1 Fabricators . | . . . . . Repair Stations . | . . . . . Recycling Units . | . . . . . Scanalyzers . | . . . . . Garrison Access . | . . . . . Data Cores Recovered . | . . . . . Used . | . . . . . Hacking Detections 6 | . 5 . . 1 Full Trace Events . | . . . . . Feedback Events . | . . . . . Feedback Blocked . | . . . . . Robot Schematics Acquired . | . . . . . Robots Built . | . . . . . Authchips . | . . . . . Time . | . . . . . Total Robot Build Rating . | . . . . . Part Schematics Acquired . | . . . . . Parts Built . | . . . . . Authchips . | . . . . . Time . | . . . . . Total Part Build Rating . | . . . . . Parts Repaired . | . . . . . Time . | . . . . . Parts Recycled . | . . . . . Recycled Matter 66 | . 66 . . . Retrieved Matter 66 | . 66 . . . Retrieved Components . | . . . . . Parts Scanalyzed . | . . . . . Part Schematics Acquired . | . . . . . Parts Damaged . | . . . . . Bothacking | -11 -10 -10 -10 -8 ------------ Run | Yrd Mat Min Sub Mat Used RIF Installer . | . . . . . Robots Hacked . | . . . . . Non-combat . | . . . . . Combat . | . . . . . Robot Hacks Applied . | . . . . . Relay Couplers Released . | . . . . . Fabnet Peak Effective % . | . . . . . Robots Rewired . | . . . . . Allies Hacked . | . . . . . Hacks Repelled . | . . . . . Allies | -11 -10 -10 -10 -8 -------- Run | Yrd Mat Min Sub Mat Total Allies . | . . . . . Largest Group . | . . . . . Highest-Rated Group . | . . . . . Highest-Rated Ally . | . . . . . Total Orders . | . . . . . Ally Attacks . | . . . . . Total Damage . | . . . . . Kills . | . . . . . Allies Corrupted . | . . . . . Allies Melted . | . . . . . Intel | -11 -10 -10 -10 -8 ------- Run | Yrd Mat Min Sub Mat Robot Analysis Total . | . . . . . Derelict Logs Recovered 2 | . . 1 1 . Drone Launches . | . . . . . Drone Recoveries . | . . . . . Exploration | -11 -10 -10 -10 -8 ------------- Run | Yrd Mat Min Sub Mat Turns Passed 3855 | 316 775 693 728 1343 Spaces Moved 2188 | 169 470 401 432 716 Core 2 | 2 . . . . Treads 666 | 167 276 223 . . Legs . | . . . . . Wheels 1520 | . 194 178 432 716 Hover . | . . . . . Flight . | . . . . . Fastest Speed 50 | 50 110 110 110 110 Average Speed 135 | 158 139 139 117 136 Slowest Speed 240 | 160 240 240 125 230 Overloaded Moves . | . . . . . Propulsion Burnouts . | . . . . . Robots Hopped . | . . . . . Cave-ins Triggered . | . . . . . Exploration Rate (%) 43 | 10 70 73 22 42 Regions Visited 4 Branch Regions 2 Pre-discovered Areas 2 | . . 1 1 . Known Exits Taken . | . . . . . Unknown Exits Taken 4 | 1 1 1 1 . Scrap Searched 5 | . . 1 4 . Spaces Dug 5 | . . . . 5 Terrain Destroyed 186 | . 21 93 11 61 Melee 5 | . . . . 5 Projectile 17 | . . . . 17 AOE 164 | . 21 93 11 39 Terrain Rammed . | . . . . . Walls Destroyed . | . . . . . Machines Disabled . | . . . . . Actions | -11 -10 -10 -10 -8 --------- Run | Yrd Mat Min Sub Mat Total 2743 | 192 536 459 621 935 Wait 208 | . 4 8 152 44 Move 2184 | 168 469 400 431 716 Hop . | . . . . . Pick Up 52 | 4 13 2 9 24 Fast Attach 17 | 6 1 . 1 9 Attach 31 | . 2 1 4 24 Detach 3 | . . . . 3 Swap 36 | . 7 5 5 19 Drop 24 | . 5 1 3 15 Fire 177 | 14 35 39 16 73 Melee 8 | . . . . 8 Ram . | . . . . . Kick . | . . . . . Crush 1 | . . 1 . . Escape Stasis . | . . . . . Rewire 2 | . . 2 . . Trap . | . . . . . Miscellaneous . | . . . . . Route ------- -11/Scrapyard -10/Materials (discovered 2 exits: [*Mat] / [*Min]) -10/Mines (discovered 3 exits: [*Mat x2] / *Sub) -10/Subcaves -8/Materials (discovered 1 exit: Fac) History --------- Turn | Location | Event 15 | -11/Scrapyard | Discovered new exit (range 14) 317 | -11/Scrapyard | Entered Materials 318 | -10/Materials | Build established: Mutant 794 | -10/Materials | Discovered new exit (range 8) 1052 | -10/Materials | Discovered new exit (range 7) 1092 | -10/Materials | Entered Mines 1124 | -10/Mines | Met a Derelict bent on vengeance 1128 | -10/Mines | Discovered new exit (range 10) 1164 | -10/Mines | Discovered new exit (range 5) 1583 | -10/Mines | Assembled infested the area 1588 | -10/Mines | Assisted by a Guerilla fighting off Assembled 1600 | -10/Mines | Learned location of Recycling (-7) 1642 | -10/Mines | Core integrity fell below 50% 1740 | -10/Mines | Destroyed 9 combat bots 1771 | -10/Mines | Discovered new exit (range 12) 1785 | -10/Mines | Entered Subcaves 1791 | -10/Subcaves | Learned location of 1 exit from Materials 1935 | -10/Subcaves | Shifting Twisted Machinery released Mak. Hacking Suite 2106 | -10/Subcaves | Shifting Twisted Machinery released Flamer 2254 | -10/Subcaves | Visited 4L-MR0's lab 2378 | -10/Subcaves | Found Power Bank 2427 | -10/Subcaves | Learned location of Zion (-6) 2427 | -10/Subcaves | Met a Zionite searching for "candidates" 2439 | -10/Subcaves | Discovered new exit (range 10) 2513 | -10/Subcaves | Entered Materials 2513 | -8/Materials | Evolved 4 slots: Propulsion x1, Utility x2, Weapon x1 2514 | -8/Materials | Identified exit to Factory 2893 | -8/Materials | Lost 3 parts (1p1n1w) 3491 | -8/Materials | Core integrity fell below 50% 3557 | -8/Materials | Lost 9 parts (3p3n3w) 3734 | -8/Materials | Core integrity fell below 20% 3856 | -8/Materials | Destroyed by H-61 Shepherd with Heavy Assault Cannon Last Messages --------------- 03775_ Atomic Centrifuge disabled. 03782_ G-47 Trooper destroyed. 03787_ Acquired 20 matter. 03791_ U-05 Engineer builds a Door. 03792_ U-05 Engineer builds a Wall. 03793_ Acquired 10 matter. 03801_ Y-45 Defender destroyed. 03803_ Critical hit (Burn: +37). 03808_ Adv. Visual Processing Unit melted. 03808_ Targeting Computer melted. 03808_ X-62 Marksman destroyed. 03809_ System corrupted: Heat flow error (+144). 03809_ Penetrated by Slug. 03816_ U-05 Engineer builds a Door. 03819_ K-01 Serf collects debris. 03840_ Penetrated by Slug. 03840_ Com. Wheel destroyed. 03843_ X-62 Marksman destroyed. 03853_ Imp. Sensor Array destroyed. 03856_ Imp. Medium Laser destroyed. Map ----- +----------------------------------------------------+ | ###+############# #??# #??????????????????# | | ??# #??# #??????????????????# | | ??# ##### #### #??#%] #?????????????????? | | ??# #???# #??# #??#[] ! #????????????????? | | ??# #???# #?## ##?# #????????????????? ] | | ??#%[ #???# #?## #?# !#????????????????? | | ??#=##/#####+#### #?##" "###???????????????? | | ?##=## ### #### "G"#??????????????????? | | ?# "# ### " #??????????????????? | | ?## ## ### # ####???????????????????? | | ?## ## ### ##??????????????????????????? | | ?## ## #?# #???????????????????????????? | | ?## ## #?# #######?????????????????????? | | ?## ## #?# ####### ???????????? | | ### ## #?# / ???????????? | | ### ## #?# ####### ???????????? | | ##" ######+###### u#####??????????????????? | | ##"="#### !!#??????????????????? | | ###%"#### !!#??????????????????? | | ### !!#??????????????????? | | ####"#### !!#??????????????????? | | / # #####!### [!! [[#??????????????????? | | % # #####+#######%[ [[#??????????????????? | | [ # ## = #?#=#####??????????????????? | | / ## #?#%#??????????????????????? | | !![ %# ## ! #?#@#??????????????????????? | | !![ =#% ## #?# #??????????????????????? | | !! # ## """ #?# #??????????????????????? | | ! " ## """ #?# #??????????????????????? | | ####"###" ! ## " " #?# #??????????????????????? | | ########"%%*## %%*%#?# #??????????????????????? | | ??#######*[ #######/###? ??????????????????????? | | ???????##% # ???#=* ??????????????????????? | | ???????##! # ???+ #????????????????????? | | ???????## # ???# ! #????????????????????? | | ??####### # ???###### #????????????????????? | | ??####### [!# ?????????# ##????????????????????? | | ??## [ # ?????????# #?????????????????????? | | ?### =%# ?????????# #?????????????????????? | | #### """ ##?????????# #?????????????????????? | | ##"" "R" ##?????????? #?????????????????????? | | ##"T " " ##?????????? ?????????????????????? | | ##"" ??? ? ????????????????????? | | #### ##????????#???????????????????? | | #### ##????H???????????????????????? | | ??#### ####### ##????????????????????????????? | | ??#### ######## ###????????????????????????????? | | ????## ?????? # ###????????????????????????????? | | ????## ????????? ##?????????????????????????????? | | ????## ????????? ##?????????????????????????????? | +----------------------------------------------------+ Best States ------------- Heat Dissipation 45 Energy Generation 14 Energy Capacity 250 Matter Stores 300 Matter Capacity 300 Sight Range 21 Robot Scan Range 15 Terrain Scan Density 10 Armor Coverage 900 Evasion (%) 40 Targeting Accuracy 5 Recoil Reduction 2 Item Schematics ----------------- None Robot Schematics ------------------ None Fabricated ------------ Nothing Alien Tech Used ----------------- None Achievements -------------- None Challenges ------------ None Game ------ Seed DisruptorDisposableCleaver Manual? 0 Play Time 00:53:38 Cumulative 43.5 hours Start 2024.07.06 @ 21:07:50 End 2024.07.07 @ 16:13:58 Sessions 1 Manual Loads 0 Difficulty Rogue Special Mode None Game No. 68 Rogue 68 Adventurer 0 Explorer 0 Win Type - Total 0 Types 0/0/0/0/0/0/0/0/0 Lore% 26 Gallery% 28 Achievement% 30 Wizard Run 0 Options --------- Layout 1 ASCII 0 Keyboard 0 Movement Arrows Keybinds 0 Fullscreen 1 Font 24/Crisp Map View 50x40 Zoom Use 0% Tactical HUD 1 Map Filters NONE Filters NONE Steam 1 RUN: ed488721-e20a-4cf8-8c38-32c3316569e4